[Event "Titled Tuesday Blitz October 25 Early 2022"]
[White "Perez Ponsa, Federico"]
[Black "ProfessorChess101"]
[WhiteFideId "117927"]
[WhiteElo "2604"]
[BlackElo "2693"]
[Result "1-0"]
[Round "06"]
[TimeControl "180+1"]
[Date "2022.10.25"]
[WhiteClock "0:01:27"]
[BlackClock "0:00:24"]

1. e4 {[%clk 0:03:00]}  e5 {[%clk 0:02:57]} 2. Nf3 {[%clk 0:02:59]}  Nc6 {[%clk 0:02:57]} 3. Bb5 {[%clk 0:03:00]}  a6 {[%clk 0:02:58]} 4. Ba4 {[%clk 0:03:01]}  b5 {[%clk 0:02:58]} 5. Bb3 {[%clk 0:03:01]}  Na5 {[%clk 0:02:58]} 6. d4 {[%clk 0:02:55]}  exd4 {[%clk 0:02:50]} 7. Qxd4 {[%clk 0:02:51]}  Bb7 {[%clk 0:02:26]} 8. Bg5 {[%clk 0:02:43]}  f6 {[%clk 0:02:14]} 9. Bd2 {[%clk 0:02:29]}  c5 {[%clk 0:02:08]} 10. Qc3 {[%clk 0:02:29]}  Nxb3 {[%clk 0:02:01]} 11. axb3 {[%clk 0:02:27]}  d6 {[%clk 0:01:58]} 12. Qd3 {[%clk 0:02:21]}  Ne7 {[%clk 0:01:57]} 13. Nc3 {[%clk 0:02:13]}  b4 {[%clk 0:01:47]} 14. Ne2 {[%clk 0:02:05]}  Ng6 {[%clk 0:01:46]} 15. Nf4 {[%clk 0:02:01]}  Nxf4 {[%clk 0:01:44]} 16. Bxf4 {[%clk 0:02:02]}  d5 {[%clk 0:01:39]} 17. O-O-O {[%clk 0:01:55]}  dxe4 {[%clk 0:01:30]} 18. Qc4 {[%clk 0:01:55]}  Qe7 {[%clk 0:01:13]} 19. Bd6 {[%clk 0:01:55]}  Qf7 {[%clk 0:01:05]} 20. Qxc5 {[%clk 0:01:55]}  Bxd6 {[%clk 0:01:01]} 21. Qxd6 {[%clk 0:01:56]}  Qe7 {[%clk 0:01:01]} 22. Rhe1 {[%clk 0:01:46]}  Rd8 {[%clk 0:00:43]} 23. Qxe7+ {[%clk 0:01:46]}  Kxe7 {[%clk 0:00:43]} 24. Nd2 {[%clk 0:01:46]}  f5 {[%clk 0:00:41]} 25. f3 {[%clk 0:01:47]}  Kf7 {[%clk 0:00:35]} 26. fxe4 {[%clk 0:01:47]}  fxe4 {[%clk 0:00:36]} 27. Nxe4 {[%clk 0:01:46]}  Rxd1+ {[%clk 0:00:36]} 28. Kxd1 {[%clk 0:01:47]}  Rd8+ {[%clk 0:00:37]} 29. Kc1 {[%clk 0:01:47]}  Kg6 {[%clk 0:00:35]} 30. Nc5 {[%clk 0:01:44]}  Bc8 {[%clk 0:00:32]} 31. Nd3 {[%clk 0:01:35]}  a5 {[%clk 0:00:32]} 32. Re5 {[%clk 0:01:36]}  Rf8 {[%clk 0:00:23]} 33. Rxa5 {[%clk 0:01:34]}  Rf1+ {[%clk 0:00:23]} 34. Kd2 {[%clk 0:01:34]}  Rg1 {[%clk 0:00:24]} 35. Ke3 {[%clk 0:01:27]}  Rxg2 {[%clk 0:00:24]} 36. Nf4+ {[%clk 0:01:27]} 1-0


[Site "https://www.chess.com"]

[Event "Titled Tuesday Blitz October 25 Early 2022"]
[White "Peyrer, Konstantin"]
[Black "Eljanov, Pavel"]
[WhiteFideId "1640879"]
[BlackFideId "14102951"]
[WhiteElo "2415"]
[BlackElo "2601"]
[Result "0-1"]
[Round "06"]
[TimeControl "180+1"]
[Date "2022.10.25"]
[WhiteClock "0:00:30"]
[BlackClock "0:00:35"]

1. d4 {[%clk 0:02:59]}  Nf6 {[%clk 0:02:58]} 2. c4 {[%clk 0:02:59]}  e6 {[%clk 0:02:58]} 3. Nf3 {[%clk 0:02:58]}  d5 {[%clk 0:02:58]} 4. g3 {[%clk 0:02:59]}  Be7 {[%clk 0:02:57]} 5. Bg2 {[%clk 0:02:57]}  O-O {[%clk 0:02:55]} 6. O-O {[%clk 0:02:58]}  c6 {[%clk 0:02:55]} 7. Qc2 {[%clk 0:02:58]}  Nbd7 {[%clk 0:02:55]} 8. Bf4 {[%clk 0:02:57]}  b6 {[%clk 0:02:53]} 9. Rd1 {[%clk 0:02:54]}  Bb7 {[%clk 0:02:53]} 10. Nc3 {[%clk 0:02:53]}  dxc4 {[%clk 0:02:54]} 11. Nd2 {[%clk 0:02:36]}  Nd5 {[%clk 0:02:53]} 12. Nxc4 {[%clk 0:02:36]}  Nxf4 {[%clk 0:02:54]} 13. gxf4 {[%clk 0:02:36]}  Qc7 {[%clk 0:02:55]} 14. e3 {[%clk 0:02:35]}  Rac8 {[%clk 0:02:51]} 15. Rac1 {[%clk 0:02:33]}  Nf6 {[%clk 0:02:50]} 16. Ne5 {[%clk 0:02:28]}  c5 {[%clk 0:02:27]} 17. d5 {[%clk 0:02:18]}  exd5 {[%clk 0:02:26]} 18. Nxd5 {[%clk 0:02:16]}  Bxd5 {[%clk 0:02:25]} 19. Bxd5 {[%clk 0:02:17]}  Nxd5 {[%clk 0:02:25]} 20. Rxd5 {[%clk 0:02:18]}  Rcd8 {[%clk 0:02:24]} 21. Rcd1 {[%clk 0:02:17]}  Rxd5 {[%clk 0:01:59]} 22. Rxd5 {[%clk 0:02:18]}  Bd6 {[%clk 0:01:59]} 23. Qd3 {[%clk 0:02:14]}  Bxe5 {[%clk 0:01:58]} 24. fxe5 {[%clk 0:02:14]}  g6 {[%clk 0:01:30]} 25. f4 {[%clk 0:02:03]}  Qc6 {[%clk 0:01:31]} 26. e4 {[%clk 0:02:00]}  c4 {[%clk 0:01:22]} 27. Qd4 {[%clk 0:01:57]}  Qe6 {[%clk 0:01:17]} 28. Qd1 {[%clk 0:01:42]}  Qh3 {[%clk 0:01:12]} 29. Qe2 {[%clk 0:01:38]}  Rc8 {[%clk 0:01:08]} 30. Rd1 {[%clk 0:01:09]}  c3 {[%clk 0:01:05]} 31. Rc1 {[%clk 0:01:07]}  cxb2 {[%clk 0:00:42]} 32. Rxc8+ {[%clk 0:01:00]}  Qxc8 {[%clk 0:00:43]} 33. Qxb2 {[%clk 0:01:01]}  Qg4+ {[%clk 0:00:43]} 34. Kh1 {[%clk 0:01:01]}  Qxf4 {[%clk 0:00:42]} 35. Qe2 {[%clk 0:00:53]}  Qxe5 {[%clk 0:00:42]} 36. Kg2 {[%clk 0:00:47]}  b5 {[%clk 0:00:41]} 37. Qc2 {[%clk 0:00:42]}  a5 {[%clk 0:00:39]} 38. Qd3 {[%clk 0:00:37]}  Kg7 {[%clk 0:00:38]} 39. Kh3 {[%clk 0:00:30]}  b4 {[%clk 0:00:35]} 0-1


[Site "https://www.chess.com"]

[Event "Titled Tuesday Blitz October 25 Early 2022"]
[White "Pultinevicius, Paulius"]
[Black "Maghsoodloo, Parham"]
[WhiteFideId "12809390"]
[BlackFideId "12539929"]
[WhiteElo "2500"]
[BlackElo "2676"]
[Result "1-0"]
[Round "06"]
[TimeControl "180+1"]
[Date "2022.10.25"]
[WhiteClock "0:00:02"]
[BlackClock "0:00:03"]

1. d4 {[%clk 0:03:00]}  Nf6 {[%clk 0:03:00]} 2. c4 {[%clk 0:03:01]}  e6 {[%clk 0:03:00]} 3. Nf3 {[%clk 0:03:01]}  d5 {[%clk 0:03:00]} 4. Nc3 {[%clk 0:03:01]}  dxc4 {[%clk 0:03:01]} 5. e4 {[%clk 0:03:01]}  b5 {[%clk 0:03:01]} 6. e5 {[%clk 0:03:01]}  Nd5 {[%clk 0:03:02]} 7. Nxb5 {[%clk 0:03:01]}  Nb6 {[%clk 0:03:02]} 8. Be2 {[%clk 0:02:56]}  Nc6 {[%clk 0:03:03]} 9. O-O {[%clk 0:02:56]}  Be7 {[%clk 0:03:03]} 10. Qd2 {[%clk 0:02:54]}  O-O {[%clk 0:03:03]} 11. Rd1 {[%clk 0:02:47]}  Rb8 {[%clk 0:03:01]} 12. Nc3 {[%clk 0:02:40]}  Nb4 {[%clk 0:03:01]} 13. Qf4 {[%clk 0:02:20]}  Bb7 {[%clk 0:03:00]} 14. Qg3 {[%clk 0:02:18]}  Kh8 {[%clk 0:03:00]} 15. b3 {[%clk 0:02:07]}  Nc2 {[%clk 0:02:56]} 16. Rb1 {[%clk 0:02:04]}  cxb3 {[%clk 0:02:53]} 17. axb3 {[%clk 0:02:03]}  Bxf3 {[%clk 0:02:47]} 18. Bxf3 {[%clk 0:02:01]}  Nxd4 {[%clk 0:02:48]} 19. Be4 {[%clk 0:01:59]}  c5 {[%clk 0:02:47]} 20. Qh3 {[%clk 0:01:45]}  g6 {[%clk 0:02:45]} 21. Bh6 {[%clk 0:01:43]}  Re8 {[%clk 0:02:44]} 22. Bc6 {[%clk 0:01:43]}  Nd7 {[%clk 0:02:44]} 23. Ba4 {[%clk 0:01:39]}  Bf8 {[%clk 0:02:12]} 24. Ne4 {[%clk 0:01:32]}  Be7 {[%clk 0:01:43]} 25. f4 {[%clk 0:01:04]}  Qc7 {[%clk 0:01:32]} 26. Bg5 {[%clk 0:00:56]}  Bxg5 {[%clk 0:01:14]} 27. Nxg5 {[%clk 0:00:48]}  Nf8 {[%clk 0:01:11]} 28. Bxe8 {[%clk 0:00:47]}  Rxe8 {[%clk 0:01:12]} 29. Kh1 {[%clk 0:00:43]}  Kg7 {[%clk 0:01:07]} 30. Rbc1 {[%clk 0:00:43]}  Qb6 {[%clk 0:01:00]} 31. Rc3 {[%clk 0:00:34]}  Rd8 {[%clk 0:00:37]} 32. Rcd3 {[%clk 0:00:34]}  Rd5 {[%clk 0:00:35]} 33. Ne4 {[%clk 0:00:33]}  Ne2 {[%clk 0:00:24]} 34. Qe3 {[%clk 0:00:25]}  Rxd3 {[%clk 0:00:18]} 35. Rxd3 {[%clk 0:00:26]}  Nd4 {[%clk 0:00:18]} 36. Nxc5 {[%clk 0:00:25]}  Qxc5 {[%clk 0:00:17]} 37. Qxd4 {[%clk 0:00:25]}  Qc1+ {[%clk 0:00:10]} 38. Rd1 {[%clk 0:00:25]}  Qc2 {[%clk 0:00:11]} 39. b4 {[%clk 0:00:25]}  h5 {[%clk 0:00:06]} 40. h3 {[%clk 0:00:23]}  h4 {[%clk 0:00:06]} 41. Ra1 {[%clk 0:00:24]}  g5 {[%clk 0:00:03]} 42. fxg5 {[%clk 0:00:23]}  Ng6 {[%clk 0:00:04]} 43. Rxa7 {[%clk 0:00:23]}  Qc1+ {[%clk 0:00:03]} 44. Kh2 {[%clk 0:00:15]}  Qxg5 {[%clk 0:00:03]} 45. Ra3 {[%clk 0:00:15]}  Nf4 {[%clk 0:00:02]} 46. Qe4 {[%clk 0:00:09]}  Ng6 {[%clk 0:00:01]} 47. Re3 {[%clk 0:00:07]}  Qe7 {[%clk 0:00:02]} 48. b5 {[%clk 0:00:07]}  Qc5 {[%clk 0:00:03]} 49. Rb3 {[%clk 0:00:07]}  Qb6 {[%clk 0:00:03]} 50. Qc6 {[%clk 0:00:07]}  Qd4 {[%clk 0:00:03]} 51. Qc3 {[%clk 0:00:07]}  Qf4+ {[%clk 0:00:03]} 52. Kg1 {[%clk 0:00:07]}  Ne7 {[%clk 0:00:03]} 53. b6 {[%clk 0:00:07]}  Nd5 {[%clk 0:00:04]} 54. Qe1 {[%clk 0:00:05]}  Qc4 {[%clk 0:00:01]} 55. Rb1 {[%clk 0:00:03]}  Qd3 {[%clk 0:00:01]} 56. Kh1 {[%clk 0:00:03]}  Nf4 {[%clk 0:00:01]} 57. b7 {[%clk 0:00:03]}  Qd5 {[%clk 0:00:01]} 58. Qf1 {[%clk 0:00:03]}  Qe4 {[%clk 0:00:02]} 59. b8=Q {[%clk 0:00:03]}  Nxh3 {[%clk 0:00:03]} 60. Qb4 {[%clk 0:00:03]}  Qf5 {[%clk 0:00:02]} 61. Qxf5 {[%clk 0:00:02]}  Nf2+ {[%clk 0:00:03]} 62. Qxf2 {[%clk 0:00:02]} 1-0


[Site "https://www.chess.com"]

[Event "Titled Tuesday Blitz October 25 Early 2022"]
[White "Rozman, Levy"]
[Black "Andreikin, Dmitry"]
[WhiteFideId "2039877"]
[BlackFideId "4158814"]
[WhiteElo "2376"]
[BlackElo "2736"]
[Result "1/2-1/2"]
[Round "06"]
[TimeControl "180+1"]
[Date "2022.10.25"]
[WhiteClock "0:00:05"]
[BlackClock "0:00:08"]

1. e4 {[%clk 0:03:00]}  c5 {[%clk 0:03:00]} 2. a3 {[%clk 0:03:00]}  g6 {[%clk 0:02:58]} 3. Nc3 {[%clk 0:03:00]}  Bg7 {[%clk 0:02:57]} 4. Bc4 {[%clk 0:03:01]}  e6 {[%clk 0:02:57]} 5. d3 {[%clk 0:03:02]}  Ne7 {[%clk 0:02:55]} 6. Ba2 {[%clk 0:03:02]}  b6 {[%clk 0:02:50]} 7. h4 {[%clk 0:03:02]}  Bb7 {[%clk 0:02:49]} 8. h5 {[%clk 0:03:02]}  Nbc6 {[%clk 0:02:49]} 9. Bf4 {[%clk 0:02:57]}  a6 {[%clk 0:02:42]} 10. Nf3 {[%clk 0:02:51]}  d6 {[%clk 0:02:37]} 11. Qd2 {[%clk 0:02:42]}  Nd4 {[%clk 0:02:38]} 12. Nxd4 {[%clk 0:02:34]}  cxd4 {[%clk 0:02:38]} 13. Ne2 {[%clk 0:02:34]}  Rc8 {[%clk 0:02:36]} 14. Bh6 {[%clk 0:02:23]}  Bf6 {[%clk 0:02:29]} 15. Bg5 {[%clk 0:02:07]}  Nc6 {[%clk 0:02:26]} 16. f4 {[%clk 0:01:44]}  Bxg5 {[%clk 0:02:13]} 17. fxg5 {[%clk 0:01:44]}  Rf8 {[%clk 0:02:13]} 18. hxg6 {[%clk 0:01:38]}  hxg6 {[%clk 0:02:14]} 19. O-O-O {[%clk 0:01:28]}  b5 {[%clk 0:02:13]} 20. Rh7 {[%clk 0:01:24]}  b4 {[%clk 0:02:07]} 21. Bxe6 {[%clk 0:01:15]}  bxa3 {[%clk 0:01:54]} 22. bxa3 {[%clk 0:00:56]}  fxe6 {[%clk 0:01:48]} 23. Rxb7 {[%clk 0:00:55]}  Na5 {[%clk 0:01:48]} 24. Rb2 {[%clk 0:00:44]}  e5 {[%clk 0:01:48]} 25. Ng1 {[%clk 0:00:31]}  Qc7 {[%clk 0:01:26]} 26. Nf3 {[%clk 0:00:28]}  Rh8 {[%clk 0:01:27]} 27. Kb1 {[%clk 0:00:25]}  Ke7 {[%clk 0:01:21]} 28. Ka2 {[%clk 0:00:20]}  Kf8 {[%clk 0:01:08]} 29. Rf1 {[%clk 0:00:18]}  Kg7 {[%clk 0:01:08]} 30. Qb4 {[%clk 0:00:09]}  Rb8 {[%clk 0:01:04]} 31. Nxd4 {[%clk 0:00:10]}  Rbe8 {[%clk 0:00:35]} 32. Nb3 {[%clk 0:00:09]}  Nc6 {[%clk 0:00:34]} 33. Qc4 {[%clk 0:00:09]}  Qd7 {[%clk 0:00:35]} 34. Rbb1 {[%clk 0:00:05]}  Rhf8 {[%clk 0:00:34]} 35. Rxf8 {[%clk 0:00:04]}  Rxf8 {[%clk 0:00:35]} 36. Qa4 {[%clk 0:00:02]}  Rf2 {[%clk 0:00:33]} 37. Rb2 {[%clk 0:00:03]}  Qc8 {[%clk 0:00:30]} 38. Na5 {[%clk 0:00:02]}  Nd4 {[%clk 0:00:27]} 39. Qc4 {[%clk 0:00:02]}  Qxc4+ {[%clk 0:00:23]} 40. Nxc4 {[%clk 0:00:03]}  Rxc2 {[%clk 0:00:20]} 41. Rxc2 {[%clk 0:00:03]}  Nxc2 {[%clk 0:00:21]} 42. Nxd6 {[%clk 0:00:03]}  Ne1 {[%clk 0:00:21]} 43. Ne8+ {[%clk 0:00:03]}  Kf7 {[%clk 0:00:19]} 44. Nc7 {[%clk 0:00:03]}  Nxd3 {[%clk 0:00:14]} 45. Nxa6 {[%clk 0:00:03]}  Nf4 {[%clk 0:00:14]} 46. Nc5 {[%clk 0:00:03]}  Ke7 {[%clk 0:00:13]} 47. Kb3 {[%clk 0:00:03]}  Kd6 {[%clk 0:00:12]} 48. Kc4 {[%clk 0:00:03]}  Nxg2 {[%clk 0:00:12]} 49. a4 {[%clk 0:00:03]}  Kc6 {[%clk 0:00:12]} 50. Nd3 {[%clk 0:00:03]}  Ne3+ {[%clk 0:00:11]} 51. Kc3 {[%clk 0:00:03]}  Ng4 {[%clk 0:00:08]} 52. Nb4+ {[%clk 0:00:03]}  Kd6 {[%clk 0:00:07]} 53. a5 {[%clk 0:00:03]}  Nf2 {[%clk 0:00:08]} 54. Kc4 {[%clk 0:00:03]}  Nxe4 {[%clk 0:00:08]} 55. a6 {[%clk 0:00:03]}  Kc7 {[%clk 0:00:07]} 56. Kd5 {[%clk 0:00:04]}  Nxg5 {[%clk 0:00:06]} 57. Kxe5 {[%clk 0:00:04]}  Kb6 {[%clk 0:00:06]} 58. Kf6 {[%clk 0:00:04]}  Ne4+ {[%clk 0:00:07]} 59. Kxg6 {[%clk 0:00:04]}  Nc5 {[%clk 0:00:07]} 60. Kf6 {[%clk 0:00:05]}  Nxa6 {[%clk 0:00:08]} 1/2-1/2


[Site "https://www.chess.com"]

[Event "Titled Tuesday Blitz October 25 Early 2022"]
[White "Seo, Jung Min"]
[Black "Sarana, Alexey"]
[WhiteFideId "1734687"]
[BlackFideId "24133795"]
[WhiteElo "2455"]
[BlackElo "2689"]
[Result "0-1"]
[Round "06"]
[TimeControl "180+1"]
[Date "2022.10.25"]
[WhiteClock "0:00:01"]
[BlackClock "0:00:10"]

1. e4 {[%clk 0:03:00]}  c5 {[%clk 0:03:00]} 2. Nf3 {[%clk 0:03:00]}  d6 {[%clk 0:03:00]} 3. d4 {[%clk 0:03:00]}  cxd4 {[%clk 0:03:01]} 4. Nxd4 {[%clk 0:03:00]}  Nf6 {[%clk 0:03:02]} 5. Nc3 {[%clk 0:03:01]}  a6 {[%clk 0:03:02]} 6. Be3 {[%clk 0:03:01]}  e5 {[%clk 0:03:03]} 7. Nb3 {[%clk 0:03:01]}  Be6 {[%clk 0:03:03]} 8. f3 {[%clk 0:03:01]}  Nbd7 {[%clk 0:03:04]} 9. Nd5 {[%clk 0:03:01]}  Nxd5 {[%clk 0:03:00]} 10. exd5 {[%clk 0:03:02]}  Bf5 {[%clk 0:03:01]} 11. Qd2 {[%clk 0:03:00]}  Be7 {[%clk 0:02:58]} 12. Be2 {[%clk 0:02:58]}  a5 {[%clk 0:02:50]} 13. a4 {[%clk 0:02:57]}  Bh4+ {[%clk 0:02:47]} 14. g3 {[%clk 0:02:57]}  Bf6 {[%clk 0:02:48]} 15. O-O {[%clk 0:02:56]}  O-O {[%clk 0:02:45]} 16. Bd3 {[%clk 0:02:46]}  Bh3 {[%clk 0:02:43]} 17. Rfe1 {[%clk 0:02:46]}  g6 {[%clk 0:02:42]} 18. Nc1 {[%clk 0:02:38]}  Bg7 {[%clk 0:02:37]} 19. c3 {[%clk 0:02:35]}  f5 {[%clk 0:02:35]} 20. Ne2 {[%clk 0:02:30]}  f4 {[%clk 0:02:28]} 21. gxf4 {[%clk 0:02:25]}  Qh4 {[%clk 0:02:28]} 22. Bf2 {[%clk 0:02:23]}  Qh5 {[%clk 0:02:21]} 23. Be4 {[%clk 0:02:14]}  Bh6 {[%clk 0:02:15]} 24. Kh1 {[%clk 0:02:10]}  exf4 {[%clk 0:02:11]} 25. Bd4 {[%clk 0:01:56]}  Bf5 {[%clk 0:02:02]} 26. Ng1 {[%clk 0:01:54]}  Rae8 {[%clk 0:01:57]} 27. Bxf5 {[%clk 0:01:50]}  Qxf5 {[%clk 0:01:58]} 28. b4 {[%clk 0:01:50]}  Qxd5 {[%clk 0:01:52]} 29. bxa5 {[%clk 0:01:45]}  Ne5 {[%clk 0:01:46]} 30. Qe2 {[%clk 0:01:37]}  Qxa5 {[%clk 0:01:31]} 31. Qb5 {[%clk 0:01:32]}  Qxb5 {[%clk 0:01:26]} 32. axb5 {[%clk 0:01:32]}  Nc4 {[%clk 0:01:26]} 33. Rxe8 {[%clk 0:01:28]}  Rxe8 {[%clk 0:01:27]} 34. Ra7 {[%clk 0:01:11]}  Re7 {[%clk 0:01:26]} 35. Ra8+ {[%clk 0:01:11]}  Kf7 {[%clk 0:01:26]} 36. Nh3 {[%clk 0:01:02]}  Ke6 {[%clk 0:01:23]} 37. Nf2 {[%clk 0:01:00]}  Bg5 {[%clk 0:01:19]} 38. Ne4 {[%clk 0:00:58]}  Bh4 {[%clk 0:01:18]} 39. Rc8 {[%clk 0:00:51]}  Na3 {[%clk 0:01:07]} 40. b6 {[%clk 0:00:49]}  Kd5 {[%clk 0:01:00]} 41. Bg1 {[%clk 0:00:43]}  Nc4 {[%clk 0:00:56]} 42. Rc7 {[%clk 0:00:39]}  Ne5 {[%clk 0:00:44]} 43. Kg2 {[%clk 0:00:36]}  Ke6 {[%clk 0:00:33]} 44. Rc8 {[%clk 0:00:36]}  Kd7 {[%clk 0:00:24]} 45. Rc7+ {[%clk 0:00:35]}  Kd8 {[%clk 0:00:23]} 46. Nxd6 {[%clk 0:00:24]}  Rxc7 {[%clk 0:00:23]} 47. bxc7+ {[%clk 0:00:24]}  Kxc7 {[%clk 0:00:23]} 48. Ne4 {[%clk 0:00:23]}  Be7 {[%clk 0:00:22]} 49. Bd4 {[%clk 0:00:23]}  Nd3 {[%clk 0:00:20]} 50. Kh3 {[%clk 0:00:21]}  Kc6 {[%clk 0:00:19]} 51. Kg2 {[%clk 0:00:19]}  Kd5 {[%clk 0:00:18]} 52. Bf6 {[%clk 0:00:15]}  Bf8 {[%clk 0:00:13]} 53. Bd4 {[%clk 0:00:13]}  h5 {[%clk 0:00:12]} 54. Kf1 {[%clk 0:00:11]}  b5 {[%clk 0:00:10]} 55. Ke2 {[%clk 0:00:10]}  Nc1+ {[%clk 0:00:10]} 56. Kd1 {[%clk 0:00:10]}  Nb3 {[%clk 0:00:11]} 57. Bf2 {[%clk 0:00:11]}  Nc5 {[%clk 0:00:10]} 58. Nf6+ {[%clk 0:00:05]}  Ke6 {[%clk 0:00:09]} 59. Bxc5 {[%clk 0:00:05]}  Bxc5 {[%clk 0:00:10]} 60. Ne4 {[%clk 0:00:06]}  Be7 {[%clk 0:00:08]} 61. Ke2 {[%clk 0:00:06]}  g5 {[%clk 0:00:08]} 62. h3 {[%clk 0:00:06]}  Kf5 {[%clk 0:00:08]} 63. Kd3 {[%clk 0:00:07]}  g4 {[%clk 0:00:08]} 64. hxg4+ {[%clk 0:00:08]}  hxg4 {[%clk 0:00:09]} 65. fxg4+ {[%clk 0:00:08]}  Kxg4 {[%clk 0:00:10]} 66. Ke2 {[%clk 0:00:08]}  f3+ {[%clk 0:00:08]} 67. Kf2 {[%clk 0:00:08]}  Kf4 {[%clk 0:00:09]} 68. Nd2 {[%clk 0:00:05]}  Bc5+ {[%clk 0:00:09]} 69. Kf1 {[%clk 0:00:05]}  Ke3 {[%clk 0:00:10]} 70. Nb3 {[%clk 0:00:05]}  Bb6 {[%clk 0:00:09]} 71. Nc1 {[%clk 0:00:04]}  Kd2 {[%clk 0:00:09]} 72. Na2 {[%clk 0:00:04]}  Bc5 {[%clk 0:00:09]} 73. c4 {[%clk 0:00:01]}  bxc4 {[%clk 0:00:10]} 0-1


[Site "https://www.chess.com"]

[Event "Titled Tuesday Blitz October 25 Early 2022"]
[White "Shankland, Sam"]
[Black "Martinez Alcantara, Jose Eduardo"]
[WhiteFideId "2004887"]
[BlackFideId "3805662"]
[WhiteElo "2612"]
[BlackElo "2703"]
[Result "1-0"]
[Round "06"]
[TimeControl "180+1"]
[Date "2022.10.25"]
[WhiteClock "0:01:02"]
[BlackClock "0:00:28"]

1. d4 {[%clk 0:03:00]}  Nf6 {[%clk 0:03:00]} 2. c4 {[%clk 0:03:00]}  e6 {[%clk 0:03:00]} 3. Nc3 {[%clk 0:03:00]}  Bb4 {[%clk 0:03:01]} 4. Qc2 {[%clk 0:03:01]}  d6 {[%clk 0:03:00]} 5. Nf3 {[%clk 0:02:59]}  Nbd7 {[%clk 0:02:59]} 6. Bd2 {[%clk 0:03:00]}  b6 {[%clk 0:02:56]} 7. e4 {[%clk 0:02:59]}  Bb7 {[%clk 0:02:52]} 8. Bd3 {[%clk 0:02:59]}  e5 {[%clk 0:02:51]} 9. a3 {[%clk 0:02:53]}  Bxc3 {[%clk 0:02:51]} 10. Bxc3 {[%clk 0:02:54]}  Qe7 {[%clk 0:02:51]} 11. O-O-O {[%clk 0:02:52]}  O-O {[%clk 0:02:31]} 12. Rhe1 {[%clk 0:02:51]}  Rfe8 {[%clk 0:02:31]} 13. h3 {[%clk 0:02:46]}  Nh5 {[%clk 0:02:30]} 14. g3 {[%clk 0:02:41]}  g6 {[%clk 0:02:28]} 15. Nh4 {[%clk 0:02:35]}  Ng7 {[%clk 0:02:25]} 16. Kb1 {[%clk 0:02:26]}  Ne6 {[%clk 0:02:24]} 17. d5 {[%clk 0:02:25]}  Nd4 {[%clk 0:02:20]} 18. Bxd4 {[%clk 0:02:24]}  exd4 {[%clk 0:02:21]} 19. f4 {[%clk 0:02:24]}  a6 {[%clk 0:02:17]} 20. Nf3 {[%clk 0:02:24]}  b5 {[%clk 0:02:08]} 21. cxb5 {[%clk 0:02:20]}  axb5 {[%clk 0:02:09]} 22. Qxc7 {[%clk 0:02:02]}  Ba6 {[%clk 0:01:55]} 23. e5 {[%clk 0:01:54]}  Rec8 {[%clk 0:01:24]} 24. exd6 {[%clk 0:01:48]}  Qd8 {[%clk 0:01:24]} 25. Qxd8+ {[%clk 0:01:47]}  Rxd8 {[%clk 0:01:25]} 26. Nxd4 {[%clk 0:01:44]}  Nc5 {[%clk 0:01:26]} 27. Bxb5 {[%clk 0:01:42]}  Rxd6 {[%clk 0:01:26]} 28. Bxa6 {[%clk 0:01:41]}  Raxa6 {[%clk 0:01:27]} 29. Nc6 {[%clk 0:01:39]}  Kg7 {[%clk 0:01:28]} 30. Ka2 {[%clk 0:01:38]}  Na4 {[%clk 0:01:27]} 31. Rd4 {[%clk 0:01:36]}  Raxc6 {[%clk 0:01:23]} 32. Rxa4 {[%clk 0:01:31]}  Rxd5 {[%clk 0:01:24]} 33. Re3 {[%clk 0:01:31]}  Rd2 {[%clk 0:01:24]} 34. Rb4 {[%clk 0:01:30]}  h6 {[%clk 0:01:20]} 35. h4 {[%clk 0:01:30]}  Kf6 {[%clk 0:01:20]} 36. Rb7 {[%clk 0:01:30]}  Ra6 {[%clk 0:01:11]} 37. Ree7 {[%clk 0:01:28]}  Kf5 {[%clk 0:01:12]} 38. Rxf7+ {[%clk 0:01:24]}  Kg4 {[%clk 0:01:12]} 39. Rb3 {[%clk 0:01:25]}  Rg2 {[%clk 0:01:13]} 40. Rg7 {[%clk 0:01:23]}  Rf6 {[%clk 0:01:06]} 41. a4 {[%clk 0:01:21]}  h5 {[%clk 0:01:07]} 42. Rb5 {[%clk 0:01:19]}  Rxg3 {[%clk 0:01:01]} 43. f5 {[%clk 0:01:17]}  Kxh4 {[%clk 0:00:57]} 44. Rxg6 {[%clk 0:01:17]}  Rgxg6 {[%clk 0:00:52]} 45. fxg6 {[%clk 0:01:17]}  Rxg6 {[%clk 0:00:53]} 46. a5 {[%clk 0:01:17]}  Kg4 {[%clk 0:00:53]} 47. Rb6 {[%clk 0:01:13]}  Rg8 {[%clk 0:00:50]} 48. b4 {[%clk 0:01:13]}  h4 {[%clk 0:00:49]} 49. Rh6 {[%clk 0:01:12]}  Kg5 {[%clk 0:00:37]} 50. Rh7 {[%clk 0:01:11]}  Re8 {[%clk 0:00:37]} 51. Kb3 {[%clk 0:01:11]}  Re3+ {[%clk 0:00:34]} 52. Kc4 {[%clk 0:01:10]}  Re4+ {[%clk 0:00:35]} 53. Kc5 {[%clk 0:01:10]}  Kg6 {[%clk 0:00:35]} 54. Rh8 {[%clk 0:01:09]}  Kg7 {[%clk 0:00:36]} 55. Rd8 {[%clk 0:01:07]}  h3 {[%clk 0:00:35]} 56. Rd1 {[%clk 0:01:06]}  Re5+ {[%clk 0:00:36]} 57. Kd4 {[%clk 0:01:04]}  Re2 {[%clk 0:00:33]} 58. a6 {[%clk 0:01:03]}  Ra2 {[%clk 0:00:32]} 59. b5 {[%clk 0:01:03]}  h2 {[%clk 0:00:32]} 60. Kc5 {[%clk 0:01:03]}  Kf6 {[%clk 0:00:30]} 61. Kb6 {[%clk 0:01:03]}  Ke6 {[%clk 0:00:31]} 62. Rh1 {[%clk 0:01:03]}  Kd5 {[%clk 0:00:27]} 63. a7 {[%clk 0:01:02]}  Kc4 {[%clk 0:00:26]} 64. Rxh2 {[%clk 0:01:01]}  Rxh2 {[%clk 0:00:27]} 65. a8=Q {[%clk 0:01:02]}  Rh6+ {[%clk 0:00:28]} 66. Qc6+ {[%clk 0:01:02]} 1-0


[Site "https://www.chess.com"]